[Event "SVK Amateur-ch 2020"]
[Site "Topolcany"]
[Date "2020.07.10"]
[Round "2.9"]
[White "Lach, Piotr"]
[Black "Wozniak Marcin"]
[Result "1/2-1/2"]
[ECO "C54"]
[WhiteElo "2086"]
[BlackElo "1864"]
[Annotator "ChessBase"]
[PlyCount "41"]
[EventDate "2020.07.10"]
[EventType "swiss"]
[EventCountry "SVK"]
[SourceTitle "playchess.com"]
[Source "ChessBase"]
[SourceQuality "1"]
[TimeControl "3600+30"]

1. e4 {[%emt 0:00:00]} e5 {[%emt 0:00:00]} 2. Nf3 {[%emt 0:00:00]} Nc6 {[%emt 0:00:00]} 3. Bc4 {[%emt 0:00:00]} Nf6 {[%emt 0:00:41]} 4. d3 {[%emt 0:00:15]} Bc5 {[%emt 0:00:38]} 5. O-O {[%emt 0:00:34]} d6 {[%emt 0:00:53]} 6. c3 {[%emt 0:00:20]} Bb6 {[%emt 0:13:50]} 7. Bb3 {[%emt 0:01:27]} Bg4 {[%emt 0:03:51]} 8. h3 {[%emt 0:02:38]} Be6 {[%emt 0:02:19]} 9. Nbd2 {[%emt 0:07:27]} Qd7 {[%emt 0:01:42]} 10. Bxe6 {[%emt 0:03:58]} fxe6 {[%emt 0:00:17]} 11. Nc4 {[%emt 0:00:26]} Ne7 {[%emt 0:15:39]} 12. Qb3 {[%emt 0:13:56]} h6 {[%emt 0:12:08]} 13. a4 {[%emt 0:01:24]} c5 {[%emt 0:00:05]} 14. a5 {[%emt 0:13:49]} Bc7 {[%emt 0:02:29]} 15. Qxb7 {[%emt 0:03:26]} O-O {[%emt 0:05:36]} 16. Qb3 {[%emt 0:00:47]} Ng6 {[%emt 0:03:04]} 17. Qd1 {[%emt 0:05:10]} Qf7 {[%emt 0:01:28]} 18. Na3 {[%emt 0:01:19]} Rad8 {[%emt 0:00:44]} 19. Qe2 {[%emt 0:01:01]} Nh5 {[%emt 0:01:01]} 20. Ne1 {[%emt 0:04:55]} Nhf4 {[%emt 0:00:27]} 21. Qe3 {[%emt 0:01:37]} 1/2-1/2

[Event "SVK Amateur-ch 2020"]
[Site "Topolcany"]
[Date "2020.07.10"]
[Round "2.10"]
[White "Macko, Michal"]
[Black "Panko, Radoslav"]
[Result "1/2-1/2"]
[ECO "A40"]
[WhiteElo "2145"]
[BlackElo "2031"]
[Annotator "ChessBase"]
[PlyCount "91"]
[EventDate "2020.07.10"]
[EventType "swiss"]
[EventCountry "SVK"]
[SourceTitle "playchess.com"]
[Source "ChessBase"]
[SourceQuality "1"]
[TimeControl "3600+30"]

1. d4 {[%emt 0:00:00]} e6 {[%emt 0:00:00]} 2. Bf4 {[%emt 0:00:00]} Nf6 {[%emt 0:00:13]} 3. e3 {[%emt 0:00:00]} b6 {[%emt 0:00:14]} 4. Nd2 {[%emt 0:00:28]} Bb7 {[%emt 0:00:08]} 5. Ngf3 {[%emt 0:00:05]} h6 {[%emt 0:00:39]} 6. h3 {[%emt 0:00:29]} d6 {[%emt 0:03:32]} 7. Bd3 {[%emt 0:01:50]} Nbd7 {[%emt 0:01:28]} 8. c3 {[%emt 0:02:15]} g5 {[%emt 0:03:36]} 9. Bg3 {[%emt 0:00:42]} Bg7 {[%emt 0:05:40]} 10. Qe2 {[%emt 0:03:56]} a6 {[%emt 0:08:33]} 11. a4 {[%emt 0:05:15]} Qe7 {[%emt 0:05:56]} 12. a5 {[%emt 0:04:20]} b5 {[%emt 0:00:50]} 13. c4 {[%emt 0:02:07]} e5 {[%emt 0:02:05]} 14. Bf5 {[%emt 0:01:04]} exd4 {[%emt 0:02:48]} 15. exd4 {[%emt 0:00:21]} Qxe2+ {[%emt 0:00:45]} 16. Kxe2 {[%emt 0:00:04]} bxc4 {[%emt 0:03:25]} 17. Nxc4 {[%emt 0:00:26]} Nh5 {[%emt 0:00:10]} 18. Kd3 {[%emt 0:00:56]} Nxg3 {[%emt 0:02:47]} 19. fxg3 {[%emt 0:00:30]} Nf6 {[%emt 0:00:35]} 20. Ne3 {[%emt 0:02:35]} Nh5 {[%emt 0:00:58]} 21. Rhc1 {[%emt 0:00:48]} Kd8 {[%emt 0:00:45]} 22. Nf1 {[%emt 0:00:58]} Re8 {[%emt 0:01:41]} 23. Ra4 {[%emt 0:01:33]} Rb8 {[%emt 0:01:18]} 24. Rac4 {[%emt 0:01:44]} Re7 {[%emt 0:02:31]} 25. Bg4 {[%emt 0:04:53]} Nf6 {[%emt 0:00:20]} 26. Ne3 {[%emt 0:00:06]} Nxg4 {[%emt 0:02:17]} 27. hxg4 {[%emt 0:01:35]} Be4+ {[%emt 0:00:31]} 28. Kc3 {[%emt 0:02:01]} c5 {[%emt 0:00:31]} 29. Nf5 {[%emt 0:00:26]} Bxf5 {[%emt 0:00:38]} 30. gxf5 {[%emt 0:00:07]} Rb5 {[%emt 0:14:34]} 31. Kd3 {[%emt 0:04:02]} Rxa5 {[%emt 0:00:45]} 32. dxc5 {[%emt 0:00:23]} dxc5 {[%emt 0:00:22]} 33. Rxc5 {[%emt 0:00:28]} Rd7+ {[%emt 0:00:15]} 34. Ke2 {[%emt 0:01:43]} Rxc5 {[%emt 0:00:38]} 35. Rxc5 {[%emt 0:00:05]} Bxb2 {[%emt 0:00:05]} 36. Rc6 {[%emt 0:00:21]} Ra7 {[%emt 0:04:22]} 37. Kd3 {[%emt 0:00:41]} a5 {[%emt 0:01:11]} 38. Kc2 {[%emt 0:00:01]} Bg7 {[%emt 0:00:07]} 39. Kb3 {[%emt 0:00:25]} a4+ {[%emt 0:00:51]} 40. Ka2 {[%emt 0:00:05]} Kd7 {[%emt 0:00:40]} 41. f6 {[%emt 0:02:34]} Kxc6 {[%emt 0:00:49]} 42. fxg7 {[%emt 0:00:28]} Ra8 {[%emt 0:00:04]} 43. Nd4+ {[%emt 0:00:03]} Kd5 {[%emt 0:01:10]} 44. Nf5 {[%emt 0:00:15]} Kc5 45. g4 Rg8 46. g3 1/2-1/2

[Event "SVK Amateur-ch 2020"]
[Site "Topolcany"]
[Date "2020.07.10"]
[Round "2.10"]
[White "Szitas, Gabor"]
[Black "Adda Peter"]
[Result "1-0"]
[ECO "B31"]
[WhiteElo "2082"]
[BlackElo "1000"]
[Annotator "ChessBase"]
[PlyCount "65"]
[EventDate "2020.07.10"]
[EventType "swiss"]
[EventCountry "SVK"]
[SourceTitle "playchess.com"]
[Source "ChessBase"]
[SourceQuality "1"]
[TimeControl "3600+30"]

1. e4 {[%emt 0:00:00]} c5 {[%emt 0:00:00]} 2. Nf3 {[%emt 0:00:00]} Nc6 {[%emt 0:00:00]} 3. Bb5 {[%emt 0:00:00]} g6 {[%emt 0:00:03]} 4. O-O {[%emt 0:00:05]} Bg7 {[%emt 0:00:08]} 5. Nc3 {[%emt 0:00:19]} d6 {[%emt 0:01:36]} 6. d3 {[%emt 0:01:18]} Nf6 {[%emt 0:00:51]} 7. e5 {[%emt 0:01:52]} dxe5 {[%emt 0:01:09]} 8. Nxe5 {[%emt 0:00:06]} Bd7 {[%emt 0:00:17]} 9. Nxd7 {[%emt 0:00:11]} Qxd7 {[%emt 0:00:10]} 10. Qf3 {[%emt 0:03:58]} Rc8 {[%emt 0:01:29]} 11. Be3 {[%emt 0:05:12]} a6 {[%emt 0:08:00]} 12. Bxc6 {[%emt 0:00:26]} Qxc6 {[%emt 0:00:16]} 13. Qxc6+ {[%emt 0:01:19]} Rxc6 {[%emt 0:00:09]} 14. Rab1 {[%emt 0:01:28]} e6 {[%emt 0:03:30]} 15. Rfe1 {[%emt 0:04:16]} O-O {[%emt 0:00:43]} 16. Bd2 {[%emt 0:08:50]} Rd8 {[%emt 0:01:52]} 17. b3 {[%emt 0:05:50]} b5 {[%emt 0:14:30]} 18. a4 {[%emt 0:12:24]} b4 {[%emt 0:01:07]} 19. Ne4 {[%emt 0:00:22]} Nd5 {[%emt 0:04:51]} 20. Kf1 {[%emt 0:01:54]} h6 {[%emt 0:01:15]} 21. h4 {[%emt 0:06:12]} f5 {[%emt 0:03:58]} 22. Ng3 {[%emt 0:00:14]} Kf7 {[%emt 0:01:54]} 23. Ne2 {[%emt 0:00:37]} a5 {[%emt 0:01:17]} 24. g3 {[%emt 0:01:49]} Nb6 {[%emt 0:10:32]} 25. Rbd1 {[%emt 0:03:49]} Nd5 {[%emt 0:03:58]} 26. Ng1 {[%emt 0:00:46]} Bc3 {[%emt 0:02:20]} 27. Nf3 {[%emt 0:00:15]} Bg7 {[%emt 0:02:37]} 28. Bxh6 {[%emt 0:00:43]} Nc3 {[%emt 0:01:24]} 29. Bxg7 {[%emt 0:02:08]} Nxd1 {[%emt 0:02:58]} 30. Ne5+ {[%emt 0:00:20]} Kxg7 {[%emt 0:00:08]} 31. Nxc6 {[%emt 0:00:07]} Rd6 {[%emt 0:00:30]} 32. Nxa5 {[%emt 0:00:28]} Nc3 {[%emt 0:00:14]} 33. Nb7 {[%emt 0:01:27]} 1-0

[Event "SVK Amateur-ch 2020"]
[Site "Topolcany"]
[Date "2020.07.10"]
[Round "2.11"]
[White "Kucera, Michal"]
[Black "Oprea, Erik"]
[Result "0-1"]
[ECO "B00"]
[WhiteElo "1978"]
[BlackElo "2113"]
[Annotator "ChessBase"]
[PlyCount "78"]
[EventDate "2020.07.10"]
[EventType "swiss"]
[EventCountry "SVK"]
[SourceTitle "playchess.com"]
[Source "ChessBase"]
[SourceQuality "1"]
[TimeControl "3600+30"]

1. e4 {[%emt 0:00:00]} d6 {[%emt 0:00:00]} 2. d4 {[%emt 0:00:00]} Nd7 {[%emt 0:00:00]} 3. f4 {[%emt 0:00:33]} e5 {[%emt 0:01:06]} 4. Nf3 {[%emt 0:03:05]} Ngf6 {[%emt 0:01:07]} 5. Nc3 {[%emt 0:02:46]} exd4 {[%emt 0:01:04]} 6. Qxd4 {[%emt 0:01:53]} Nc5 {[%emt 0:05:22]} 7. Bc4 {[%emt 0:02:53]} Ne6 {[%emt 0:00:55]} 8. Qd3 {[%emt 0:01:29]} Be7 {[%emt 0:03:21]} 9. Bd2 {[%emt 0:05:47]} O-O {[%emt 0:00:12]} 10. O-O {[%emt 0:00:59]} c6 {[%emt 0:01:00]} 11. Kh1 {[%emt 0:02:24]} b5 {[%emt 0:00:29]} 12. Bxe6 {[%emt 0:02:56]} fxe6 {[%emt 0:06:25]} 13. Nd4 {[%emt 0:06:31]} Bd7 {[%emt 0:02:57]} 14. Qe2 {[%emt 0:02:17]} b4 {[%emt 0:00:42]} 15. Nd1 {[%emt 0:03:44]} c5 {[%emt 0:01:32]} 16. Nf3 {[%emt 0:05:37]} Qb6 {[%emt 0:02:03]} 17. c4 {[%emt 0:02:41]} Qb7 {[%emt 0:12:42]} 18. Nf2 {[%emt 0:00:48]} Nh5 {[%emt 0:00:39]} 19. Nd3 {[%emt 0:02:23]} g6 {[%emt 0:01:44]} 20. b3 {[%emt 0:01:27]} Bc6 {[%emt 0:00:37]} 21. Rae1 {[%emt 0:00:19]} a5 {[%emt 0:00:58]} 22. g4 {[%emt 0:04:10]} Ng7 {[%emt 0:01:56]} 23. h4 {[%emt 0:00:46]} a4 {[%emt 0:02:07]} 24. Kh2 {[%emt 0:01:08]} axb3 {[%emt 0:00:15]} 25. axb3 {[%emt 0:00:06]} Ra2 {[%emt 0:02:01]} 26. Nc1 {[%emt 0:00:47]} Rb2 {[%emt 0:00:42]} 27. Qe3 {[%emt 0:04:56]} Ne8 {[%emt 0:06:15]} 28. Re2 {[%emt 0:00:59]} Nf6 {[%emt 0:00:23]} 29. Rg1 {[%emt 0:03:15]} Nxe4 {[%emt 0:01:41]} 30. h5 {[%emt 0:01:29]} Rf7 {[%emt 0:03:40]} 31. Ng5 {[%emt 0:01:32]} Bxg5 {[%emt 0:02:35]} 32. fxg5 {[%emt 0:00:06]} d5 {[%emt 0:00:51]} 33. Be1 {[%emt 0:02:17]} d4 {[%emt 0:01:03]} 34. Qd3 {[%emt 0:01:38]} Qb8+ {[%emt 0:02:52]} 35. Bg3 {[%emt 0:01:16]} Nxg3 {[%emt 0:00:11]} 36. Qxg3 {[%emt 0:00:38]} Rxe2+ {[%emt 0:00:39]} 37. Nxe2 {[%emt 0:00:17]} Qf8 {[%emt 0:00:20]} 38. Re1 {[%emt 0:00:57]} Rf2+ {[%emt 0:00:32]} 39. Kh3 {[%emt 0:00:15]} Rf3 {[%emt 0:00:42]} 0-1

[Event "SVK Amateur-ch 2020"]
[Site "Topolcany"]
[Date "2020.07.10"]
[Round "2.11"]
[White "Mazak Vladimir"]
[Black "Cedzo Adam"]
[Result "0-1"]
[ECO "C30"]
[WhiteElo "1000"]
[BlackElo "1974"]
[Annotator "ChessBase"]
[PlyCount "40"]
[EventDate "2020.07.10"]
[EventType "swiss"]
[EventCountry "SVK"]
[SourceTitle "playchess.com"]
[Source "ChessBase"]
[SourceQuality "1"]
[TimeControl "3600+30"]

1. e4 {[%emt 0:00:00]} e5 {[%emt 0:00:00]} 2. f4 {[%emt 0:00:00]} d6 {[%emt 0:00:07]} 3. Nf3 {[%emt 0:00:00]} Nc6 {[%emt 0:00:05]} 4. Bc4 {[%emt 0:00:01]} Be7 {[%emt 0:00:31]} 5. O-O {[%emt 0:01:24]} Nf6 {[%emt 0:00:23]} 6. Ng5 {[%emt 0:05:16]} O-O {[%emt 0:01:23]} 7. Nxf7 {[%emt 0:01:41]} Rxf7 {[%emt 0:01:20]} 8. Bxf7+ {[%emt 0:01:14]} Kxf7 {[%emt 0:00:06]} 9. fxe5 {[%emt 0:02:13]} dxe5 {[%emt 0:00:53]} 10. Nc3 {[%emt 0:05:12]} Kg8 {[%emt 0:01:06]} 11. Qe2 {[%emt 0:03:38]} Nd4 {[%emt 0:00:44]} 12. Qc4+ {[%emt 0:07:13]} Be6 {[%emt 0:00:33]} 13. Nd5 {[%emt 0:00:51]} Nxd5 {[%emt 0:01:33]} 14. exd5 {[%emt 0:03:45]} Bxd5 {[%emt 0:00:11]} 15. Qd3 {[%emt 0:00:23]} Bc5 {[%emt 0:01:22]} 16. Kh1 {[%emt 0:00:03]} Qg5 {[%emt 0:00:46]} 17. Qh3 {[%emt 0:00:47]} Qg6 {[%emt 0:03:02]} 18. b4 {[%emt 0:02:32]} Nxc2 {[%emt 0:01:36]} 19. bxc5 {[%emt 0:01:03]} Nxa1 {[%emt 0:00:17]} 20. Bb2 {[%emt 0:00:50]} Nc2 {[%emt 0:00:25]} 0-1

[Event "SVK Amateur-ch 2020"]
[Site "Topolcany"]
[Date "2020.07.10"]
[Round "2.12"]
[White "Balint, Vilmos"]
[Black "Vargyas, Zoltan"]
[Result "1-0"]
[ECO "E63"]
[WhiteElo "2143"]
[BlackElo "2023"]
[Annotator "ChessBase"]
[PlyCount "63"]
[EventDate "2020.07.10"]
[EventType "swiss"]
[EventCountry "SVK"]
[SourceTitle "playchess.com"]
[Source "ChessBase"]
[SourceQuality "1"]
[TimeControl "3600+30"]

1. Nf3 {[%emt 0:00:00]} Nf6 {[%emt 0:00:00]} 2. g3 {[%emt 0:00:00]} g6 {[%emt 0:01:12]} 3. Bg2 {[%emt 0:00:00]} Bg7 {[%emt 0:00:07]} 4. c4 {[%emt 0:00:27]} O-O {[%emt 0:00:35]} 5. d4 {[%emt 0:00:13]} d6 {[%emt 0:01:50]} 6. O-O {[%emt 0:00:07]} Nc6 {[%emt 0:00:47]} 7. Nc3 {[%emt 0:00:15]} a6 {[%emt 0:00:57]} 8. h3 {[%emt 0:00:41]} Rb8 {[%emt 0:00:32]} 9. e3 {[%emt 0:05:32]} b5 {[%emt 0:05:06]} 10. Nd2 {[%emt 0:01:10]} Bd7 {[%emt 0:03:45]} 11. Qe2 {[%emt 0:02:23]} Re8 {[%emt 0:01:30]} 12. b3 {[%emt 0:04:53]} e5 {[%emt 0:01:25]} 13. d5 {[%emt 0:00:12]} Nd4 {[%emt 0:03:03]} 14. Qd1 {[%emt 0:02:11]} Nf5 {[%emt 0:07:09]} 15. Bb2 {[%emt 0:00:18]} bxc4 {[%emt 0:01:37]} 16. Nxc4 {[%emt 0:00:06]} Qc8 {[%emt 0:04:22]} 17. Rc1 {[%emt 0:02:18]} c5 {[%emt 0:08:46]} 18. e4 {[%emt 0:01:45]} Nd4 {[%emt 0:00:19]} 19. Nxd6 {[%emt 0:00:16]} Qd8 {[%emt 0:03:54]} 20. Nxe8 {[%emt 0:00:21]} Nxe8 {[%emt 0:00:16]} 21. Re1 {[%emt 0:10:06]} Nd6 {[%emt 0:00:34]} 22. Ne2 {[%emt 0:00:58]} Qa5 {[%emt 0:02:22]} 23. Nxd4 {[%emt 0:06:25]} exd4 {[%emt 0:01:02]} 24. e5 {[%emt 0:05:32]} Nf5 {[%emt 0:02:24]} 25. e6 {[%emt 0:00:13]} Be8 {[%emt 0:01:25]} 26. Re2 {[%emt 0:04:25]} Bh6 {[%emt 0:05:47]} 27. exf7+ {[%emt 0:00:49]} Bxf7 {[%emt 0:00:38]} 28. Rc4 {[%emt 0:01:49]} Rd8 {[%emt 0:02:12]} 29. Rec2 {[%emt 0:07:55]} Bf8 {[%emt 0:01:54]} 30. b4 {[%emt 0:00:45]} cxb4 {[%emt 0:00:35]} 31. g4 {[%emt 0:00:16]} Nh4 {[%emt 0:01:31]} 32. Qxd4 {[%emt 0:00:20]} 1-0

[Event "SVK Amateur-ch 2020"]
[Site "Topolcany"]
[Date "2020.07.10"]
[Round "2.12"]
[White "Mrkvik Jan"]
[Black "Rakovsky, Jakub"]
[Result "1-0"]
[ECO "D32"]
[WhiteElo "1942"]
[BlackElo "1644"]
[Annotator "ChessBase"]
[PlyCount "63"]
[EventDate "2020.07.10"]
[EventType "swiss"]
[EventCountry "SVK"]
[SourceTitle "playchess.com"]
[Source "ChessBase"]
[SourceQuality "1"]
[TimeControl "3600+30"]

1. d4 {[%emt 0:00:00]} d5 {[%emt 0:00:00]} 2. Nf3 {[%emt 0:00:20]} c5 {[%emt 0:00:55]} 3. e3 {[%emt 0:00:17]} Nc6 {[%emt 0:00:06]} 4. c4 {[%emt 0:00:08]} e6 {[%emt 0:00:40]} 5. Nc3 {[%emt 0:00:17]} Nf6 {[%emt 0:00:26]} 6. cxd5 {[%emt 0:00:51]} exd5 {[%emt 0:02:10]} 7. Bb5 {[%emt 0:02:11]} a6 {[%emt 0:00:40]} 8. Ba4 {[%emt 0:00:45]} cxd4 {[%emt 0:00:54]} 9. Nxd4 {[%emt 0:00:56]} Bd7 {[%emt 0:00:20]} 10. O-O {[%emt 0:03:19]} Rc8 {[%emt 0:00:40]} 11. Bb3 {[%emt 0:02:34]} Be6 {[%emt 0:02:16]} 12. Nxc6 {[%emt 0:02:48]} bxc6 {[%emt 0:00:24]} 13. Qd3 {[%emt 0:01:07]} a5 {[%emt 0:02:15]} 14. Rd1 {[%emt 0:02:42]} Bd6 {[%emt 0:01:07]} 15. e4 {[%emt 0:04:59]} Bb4 {[%emt 0:00:25]} 16. exd5 {[%emt 0:01:26]} cxd5 {[%emt 0:00:08]} 17. Nxd5 {[%emt 0:02:21]} Nxd5 {[%emt 0:01:10]} 18. Bxd5 {[%emt 0:00:22]} Qxd5 {[%emt 0:00:25]} 19. Qxd5 {[%emt 0:00:48]} Bxd5 {[%emt 0:00:03]} 20. Rxd5 {[%emt 0:00:12]} O-O {[%emt 0:02:56]} 21. a3 {[%emt 0:04:30]} Bc5 {[%emt 0:05:51]} 22. Bd2 {[%emt 0:02:14]} a4 {[%emt 0:01:23]} 23. Re1 {[%emt 0:03:37]} Rfd8 {[%emt 0:01:03]} 24. Rxd8+ {[%emt 0:03:44]} Rxd8 {[%emt 0:00:04]} 25. Bc3 {[%emt 0:00:23]} f6 {[%emt 0:00:19]} 26. g3 {[%emt 0:00:19]} Rd3 {[%emt 0:01:35]} 27. Kg2 {[%emt 0:01:22]} Bxa3 {[%emt 0:00:30]} 28. Re8+ {[%emt 0:02:19]} Bf8 {[%emt 0:02:57]} 29. Bb4 {[%emt 0:01:11]} Kf7 {[%emt 0:00:18]} 30. Rxf8+ {[%emt 0:00:23]} Ke6 {[%emt 0:00:03]} 31. Ra8 {[%emt 0:00:27]} Rb3 {[%emt 0:00:06]} 32. Bc3 {[%emt 0:00:24]} 1-0

[Event "SVK Amateur-ch 2020"]
[Site "Topolcany"]
[Date "2020.07.10"]
[Round "2.13"]
[White "Bielik, Miroslav"]
[Black "Janco, Darius"]
[Result "0-1"]
[ECO "D93"]
[WhiteElo "2133"]
[BlackElo "2003"]
[Annotator "ChessBase"]
[PlyCount "74"]
[EventDate "2020.07.10"]
[EventType "swiss"]
[EventCountry "SVK"]
[SourceTitle "playchess.com"]
[Source "ChessBase"]
[SourceQuality "1"]
[TimeControl "3600+30"]

1. d4 {[%emt 0:00:00]} g6 {[%emt 0:00:10]} 2. Nf3 {[%emt 0:00:00]} Bg7 {[%emt 0:00:19]} 3. c4 {[%emt 0:02:49]} Nf6 {[%emt 0:00:08]} 4. Nc3 {[%emt 0:00:19]} O-O {[%emt 0:01:57]} 5. Bf4 {[%emt 0:00:29]} d5 {[%emt 0:00:24]} 6. e3 {[%emt 0:00:19]} c5 {[%emt 0:01:16]} 7. dxc5 {[%emt 0:00:30]} Qa5 {[%emt 0:02:06]} 8. Qa4 {[%emt 0:03:12]} Qxc5 {[%emt 0:01:45]} 9. b4 {[%emt 0:11:30]} Qc6 {[%emt 0:01:22]} 10. b5 {[%emt 0:09:56]} Qc5 {[%emt 0:00:51]} 11. Qb3 {[%emt 0:00:25]} Nh5 {[%emt 0:05:05]} 12. Bxb8 {[%emt 0:14:45]} Rxb8 {[%emt 0:05:17]} 13. Rd1 {[%emt 0:00:37]} dxc4 {[%emt 0:02:21]} 14. Bxc4 {[%emt 0:00:19]} Bg4 {[%emt 0:00:06]} 15. Na4 {[%emt 0:02:14]} Qc7 {[%emt 0:02:14]} 16. Be2 {[%emt 0:05:52]} Qa5+ {[%emt 0:00:39]} 17. Nd2 {[%emt 0:01:05]} Be6 {[%emt 0:01:45]} 18. Bc4 {[%emt 0:00:21]} Bxc4 {[%emt 0:01:35]} 19. Qxc4 {[%emt 0:00:01]} Rbc8 {[%emt 0:00:10]} 20. Qb3 {[%emt 0:00:04]} Rfd8 {[%emt 0:02:44]} 21. Ke2 {[%emt 0:00:08]} a6 {[%emt 0:01:00]} 22. bxa6 {[%emt 0:05:21]} b5 {[%emt 0:01:25]} 23. Nc4 {[%emt 0:06:50]} bxc4 {[%emt 0:03:57]} 24. Qb6 {[%emt 0:00:04]} Bc3 {[%emt 0:10:15]} 25. a7 {[%emt 0:03:18]} Re8 {[%emt 0:04:48]} 26. Qxa5 {[%emt 0:00:03]} Bxa5 {[%emt 0:00:12]} 27. Rd7 {[%emt 0:00:46]} Nf6 {[%emt 0:00:53]} 28. Rb7 {[%emt 0:00:02]} Ra8 {[%emt 0:02:18]} 29. Rhb1 {[%emt 0:00:03]} Kg7 {[%emt 0:00:20]} 30. R1b5 {[%emt 0:00:08]} Bd8 {[%emt 0:01:21]} 31. Rc5 {[%emt 0:01:51]} Ne4 {[%emt 0:03:07]} 32. Rc6 {[%emt 0:00:41]} Nd6 {[%emt 0:00:46]} 33. Rd7 {[%emt 0:00:04]} Kf6 {[%emt 0:02:36]} 34. f3 {[%emt 0:00:09]} Ke6 {[%emt 0:00:44]} 35. Rdc7 {[%emt 0:02:29]} Bxc7 {[%emt 0:00:30]} 36. Rxc7 {[%emt 0:00:01]} Nb5 {[%emt 0:00:50]} 37. Rb7 {[%emt 0:00:32]} Nxa7 {[%emt 0:01:11]} 0-1

[Event "SVK Amateur-ch 2020"]
[Site "Topolcany"]
[Date "2020.07.10"]
[Round "2.13"]
[White "Lesniak Wojciech"]
[Black "Mirowska Oliwia"]
[Result "0-1"]
[ECO "D91"]
[WhiteElo "1208"]
[BlackElo "1898"]
[Annotator "NA"]
[PlyCount "48"]
[EventDate "2020.07.10"]
[EventType "swiss"]
[EventCountry "SVK"]
[SourceTitle "playchess.com"]
[Source "ChessBase"]
[SourceQuality "1"]
[TimeControl "3600+30"]

{[%evp 8,44,43,32767,32767,50,54,32767,32767,32767,32767,32767,32767,32767,113,92,133,128,125,80,126,32767,91,85,97,97,32767,124,230,42,32767,32767,-106,-454,-519,-631,-733,-724,-521]} 1. d4 {[%emt 0:00:00]} Nf6 {[%emt 0:00:00]} 2. c4 {[%emt 0:00:00]} c6 {[%emt 0:00:00]} 3. Nc3 {[%emt 0:00:04]} d5 {[%emt 0:00:00]} 4. Nf3 {[%emt 0:00:21]} Nbd7 {[%emt 0:00:11]} 5. Bg5 {[%emt 0:01:54]} g6 {[%emt 0:00:15]} 6. e3 {[%emt 0:02:20]} Bg7 {[%emt 0:00:11]} 7. cxd5 {[%emt 0:00:42] D91: Grünfeld: 4 Nf3 Bg7 5 Bg5.} cxd5 {[%emt 0:00:54]} 8. Bd3 {[%emt 0:01:41]} O-O {[%emt 0:00:46]} 9. O-O {[%emt 0:00:22]} a6 {[%emt 0:00:46]} 10. Qb3 {[%emt 0:05:15] [#]} Nb6 $146 {[%emt 0:02:28]} ({Predecessor:} 10... e6 11. e4 dxe4 12. Nxe4 h6 13. Bh4 g5 14. Bg3 Nd5 15. Nd6 Nf4 16. Bxf4 gxf4 {1-0 (38) Lomineishvili,M (2342)-Arakhamia Grant,K (2347) Tbilisi 2018}) 11. a4 {[%emt 0:03:02]} e6 {[%emt 0:17:45]} 12. a5 {[%emt 0:03:03]} Nbd7 {[%emt 0:00:04]} 13. Rfe1 {[%emt 0:08:54]} Re8 {[%emt 0:01:50]} 14. e4 {[%emt 0:06:45]} dxe4 {[%emt 0:01:38]} 15. Nxe4 {[%emt 0:04:45]} h6 {[%emt 0:01:03]} 16. Nd6 {[%emt 0:14:52]} hxg5 {[%emt 0:00:54] [#]} 17. Nxg5 {[%emt 0:00:14]} (17. Bxg6 $1 $18 {[%mdl 512] and the rest is easy.} Nf8 (17... fxg6 18. Rxe6) 18. Bxf7+ {[%mdl 64] Double Attack} Kh8 19. Nxe8 Nxe8 20. d5) 17... Re7 {[%emt 0:09:03]} (17... Nf8 $16 18. Ngxf7 Qd7) 18. Bxg6 $2 {[%emt 0:02:35]} (18. Ngxf7 $18 Rxf7 19. Nxf7) 18... Nf8 $2 {[%emt 0:04:10]} (18... fxg6 $14 19. Rxe6 {[#]} Nc5 $1 {[%mdl 512]} 20. dxc5 Rxe6) 19. Ngxf7 {[%emt 0:06:45]} Qd7 {[%emt 0:01:31]} 20. Rac1 $2 {[%emt 0:01:23]} (20. Nxc8 $17 {was the crucial defense.} Rxc8 21. Ne5 Qxd4 22. Rad1) 20... Nxg6 {[%emt 0:00:53]} 21. Rxc8+ {[%emt 0:04:35]} Rxc8 {[%emt 0:00:25]} 22. Nxc8 {[%emt 0:00:20]} Qxc8 $19 {[%emt 0:00:14]} 23. Ng5 {[%emt 0:00:17]} Nf4 {[%emt 0:00:48]} 24. Qg3 {[%emt 0:01:18]} Ne2+ {[%emt 0:00:14]} 0-1

[Event "SVK Amateur-ch 2020"]
[Site "Topolcany"]
[Date "2020.07.10"]
[Round "2.14"]
[White "Bodnar Zoltan"]
[Black "Sokol, Eduard"]
[Result "1-0"]
[ECO "E90"]
[WhiteElo "2150"]
[BlackElo "1576"]
[Annotator "ChessBase"]
[PlyCount "88"]
[EventDate "2020.07.10"]
[EventType "swiss"]
[EventCountry "SVK"]
[SourceTitle "playchess.com"]
[Source "ChessBase"]
[SourceQuality "1"]
[TimeControl "3600+30"]

1. d4 {[%emt 0:00:00]} Nf6 {[%emt 0:00:00]} 2. c4 {[%emt 0:00:00]} g6 {[%emt 0:00:00]} 3. Nc3 {[%emt 0:00:00]} d6 {[%emt 0:00:07]} 4. e4 {[%emt 0:00:00]} Bg7 {[%emt 0:00:06]} 5. h3 {[%emt 0:00:01]} O-O {[%emt 0:00:33]} 6. Bg5 {[%emt 0:00:05]} Nbd7 {[%emt 0:00:27]} 7. Nf3 {[%emt 0:00:15]} e5 {[%emt 0:00:26]} 8. d5 {[%emt 0:01:14]} b6 {[%emt 0:06:38]} 9. Bd3 {[%emt 0:00:53]} Nc5 {[%emt 0:01:15]} 10. Bc2 {[%emt 0:00:17]} a5 {[%emt 0:02:15]} 11. a3 {[%emt 0:00:11]} Bb7 {[%emt 0:05:11]} 12. Nd2 {[%emt 0:04:26]} h6 {[%emt 0:04:46]} 13. Be3 {[%emt 0:00:47]} Ncd7 {[%emt 0:11:41]} 14. g4 {[%emt 0:01:18]} Nh7 {[%emt 0:00:54]} 15. h4 {[%emt 0:00:48]} Re8 {[%emt 0:04:32]} 16. Nf1 {[%emt 0:05:26]} Qe7 {[%emt 0:04:56]} 17. Ba4 {[%emt 0:02:17]} Red8 {[%emt 0:05:25]} 18. b4 {[%emt 0:02:18]} Ba6 {[%emt 0:01:04]} 19. Bb3 {[%emt 0:04:16]} Qf8 {[%emt 0:00:32]} 20. Ng3 {[%emt 0:00:38]} Bc8 {[%emt 0:01:52]} 21. Nb5 {[%emt 0:01:00]} axb4 {[%emt 0:02:47]} 22. axb4 {[%emt 0:00:18]} Rxa1 {[%emt 0:00:18]} 23. Qxa1 {[%emt 0:00:02]} Ndf6 {[%emt 0:01:42]} 24. f3 {[%emt 0:08:15]} Qe7 {[%emt 0:03:47]} 25. Qc1 {[%emt 0:00:14]} h5 {[%emt 0:02:51]} 26. g5 {[%emt 0:03:34]} Ne8 {[%emt 0:00:17]} 27. c5 {[%emt 0:02:56]} bxc5 {[%emt 0:04:05]} 28. bxc5 {[%emt 0:00:24]} Bd7 {[%emt 0:00:46]} 29. c6 {[%emt 0:01:53]} Bc8 {[%emt 0:00:09]} 30. Bc4 {[%emt 0:02:45]} Ba6 {[%emt 0:00:46]} 31. Nxd6 {[%emt 0:01:24]} Bxc4 {[%emt 0:03:00]} 32. Nxc4 {[%emt 0:00:25]} Qb4+ {[%emt 0:00:12]} 33. Bd2 {[%emt 0:00:22]} Qb3 {[%emt 0:00:23]} 34. O-O {[%emt 0:00:44]} f6 {[%emt 0:01:12]} 35. Ne2 {[%emt 0:10:38]} Bf8 {[%emt 0:00:10]} 36. gxf6 {[%emt 0:01:37]} Nhxf6 {[%emt 0:00:14]} 37. Qc3 {[%emt 0:00:39]} Rb8 {[%emt 0:00:56]} 38. Qxb3 {[%emt 0:00:22]} Rxb3 {[%emt 0:00:02]} 39. Nxe5 {[%emt 0:01:41]} Bc5+ {[%emt 0:00:45]} 40. Kg2 {[%emt 0:00:17]} Kg7 {[%emt 0:00:02]} 41. Nd7 {[%emt 0:00:50]} Be7 {[%emt 0:00:43]} 42. Bc3 {[%emt 0:00:38]} Kh7 {[%emt 0:01:10]} 43. d6 {[%emt 0:04:46]} cxd6 {[%emt 0:01:59]} 44. Nxf6+ {[%emt 0:00:49]} Nxf6 {[%emt 0:00:28]} 1-0